[Event "EWIBCC 2019"]
[Site "Monte-Carlo"]
[Date "2019.11.29"]
[Round "7.20"]
[White "Andric, Jelena"]
[Black "Unuk, Laura"]
[Result "0-1"]
[ECO "A34"]
[WhiteElo "2076"]
[BlackElo "2298"]
[Annotator "ChessBase"]
[PlyCount "66"]
[EventDate "2019.11.29"]
[EventType "swiss"]
[EventCountry "MNC"]
[SourceTitle "playchess.com"]
[Source "ChessBase"]
[SourceQuality "1"]
[TimeControl "180+2"]

1. c4 {[%emt 0:00:00]} Nf6 {[%emt 0:00:00]} 2. g3 {[%emt 0:00:01]} e6 {[%emt 0:00:01]} 3. Bg2 {[%emt 0:00:05]} d5 {[%emt 0:00:01]} 4. Nf3 {[%emt 0:00:06]} c5 {[%emt 0:00:07]} 5. cxd5 {[%emt 0:00:06]} Nxd5 {[%emt 0:00:11]} 6. Nc3 {[%emt 0:00:01]} Nc6 {[%emt 0:00:05]} 7. O-O {[%emt 0:00:02]} Nc7 {[%emt 0:00:08]} 8. d3 {[%emt 0:00:07]} Be7 {[%emt 0:00:02]} 9. Bf4 {[%emt 0:00:18]} f6 {[%emt 0:00:02]} 10. Rc1 {[%emt 0:00:14]} e5 {[%emt 0:00:03]} 11. Bd2 {[%emt 0:00:14]} Be6 {[%emt 0:00:14]} 12. b3 {[%emt 0:00:05]} O-O {[%emt 0:00:11]} 13. Ne4 {[%emt 0:00:09]} b6 {[%emt 0:00:02]} 14. Ne1 {[%emt 0:00:05]} Qd7 {[%emt 0:00:14]} 15. Nc2 {[%emt 0:00:09]} Nd5 {[%emt 0:00:08]} 16. Ne3 {[%emt 0:00:04]} Nxe3 {[%emt 0:00:06]} 17. Bxe3 {[%emt 0:00:02]} a5 {[%emt 0:00:03]} 18. Qc2 {[%emt 0:00:10]} a4 {[%emt 0:00:10]} 19. Qb2 {[%emt 0:00:17]} axb3 {[%emt 0:00:13]} 20. axb3 {[%emt 0:00:01]} Nb4 {[%emt 0:00:04]} 21. Ra1 {[%emt 0:00:09]} Rxa1 22. Rxa1 {[%emt 0:00:01]} f5 {[%emt 0:00:27]} 23. Nc3 {[%emt 0:00:05]} f4 {[%emt 0:00:02]} 24. Bd2 {[%emt 0:00:04]} Qd4 {[%emt 0:00:10]} 25. Ra7 {[%emt 0:00:14]} Bf6 {[%emt 0:00:02]} 26. Bf1 {[%emt 0:00:13]} Bg5 {[%emt 0:00:27]} 27. Rb7 {[%emt 0:00:15]} fxg3 {[%emt 0:00:02]} 28. e3 {[%emt 0:00:06]} gxf2+ {[%emt 0:00:05]} 29. Kh1 {[%emt 0:00:05]} Bd5+ {[%emt 0:00:03]} 30. e4 {[%emt 0:00:17]} Bxb7 {[%emt 0:00:03]} 31. Bxg5 {[%emt 0:00:17]} Nxd3 {[%emt 0:00:05]} 32. Qd2 {[%emt 0:00:00]} Bxe4+ {[%emt 0:00:03]} 33. Bg2 {[%emt 0:00:00]} f1=Q# {[%emt 0:00:04]} 0-1

[Event "EWIBCC 2019"]
[Site "Monte-Carlo"]
[Date "2019.11.29"]
[Round "8.2"]
[White "Muzychuk, Anna"]
[Black "Stefanova, Antoaneta"]
[Result "1-0"]
[ECO "C70"]
[WhiteElo "2543"]
[BlackElo "2481"]
[Annotator "ChessBase"]
[PlyCount "97"]
[EventDate "2019.11.29"]
[EventType "swiss"]
[EventCountry "MNC"]
[SourceTitle "playchess.com"]
[Source "ChessBase"]
[SourceQuality "1"]
[TimeControl "180+2"]

1. e4 {[%emt 0:00:00]} e5 {[%emt 0:00:00]} 2. Nf3 {[%emt 0:00:00]} Nc6 {[%emt 0:00:00]} 3. Bb5 {[%emt 0:00:01]} a6 {[%emt 0:00:01]} 4. Ba4 {[%emt 0:00:01]} g6 {[%emt 0:00:04]} 5. d4 {[%emt 0:00:06]} exd4 {[%emt 0:00:02]} 6. Nxd4 {[%emt 0:00:01]} Bg7 {[%emt 0:00:12]} 7. Nxc6 {[%emt 0:00:02]} dxc6 {[%emt 0:00:22]} 8. Qxd8+ {[%emt 0:00:05]} Kxd8 {[%emt 0:00:01]} 9. Nc3 {[%emt 0:00:09]} Be6 {[%emt 0:00:03]} 10. Bb3 {[%emt 0:00:03]} Bxb3 {[%emt 0:00:03]} 11. axb3 {[%emt 0:00:01]} Ne7 {[%emt 0:00:04]} 12. Bf4 {[%emt 0:00:03]} c5 {[%emt 0:00:32]} 13. Bg5 {[%emt 0:00:22]} f6 {[%emt 0:00:07]} 14. O-O-O+ {[%emt 0:00:06]} Kc8 {[%emt 0:00:04]} 15. Be3 {[%emt 0:00:02]} b6 {[%emt 0:00:02]} 16. Nd5 {[%emt 0:00:06]} Re8 {[%emt 0:00:24]} 17. f3 {[%emt 0:00:21]} Kb7 {[%emt 0:00:03]} 18. Bf4 {[%emt 0:00:12]} Rac8 {[%emt 0:00:14]} 19. h4 {[%emt 0:00:03]} h5 {[%emt 0:00:06]} 20. Rd2 {[%emt 0:00:09]} Nc6 {[%emt 0:00:07]} 21. c3 {[%emt 0:00:08]} Ne5 {[%emt 0:00:05]} 22. Rhd1 {[%emt 0:00:03]} a5 {[%emt 0:00:30]} 23. Kc2 {[%emt 0:00:03]} Ra8 {[%emt 0:00:04]} 24. Nxc7 {[%emt 0:00:10]} Kxc7 {[%emt 0:00:05]} 25. Rd7+ {[%emt 0:00:01]} Kc6 {[%emt 0:00:05]} 26. R1d6+ {[%emt 0:00:09]} Kb5 {[%emt 0:00:01]} 27. Rxg7 {[%emt 0:00:03]} a4 {[%emt 0:00:04]} 28. c4+ {[%emt 0:00:18]} Ka6 {[%emt 0:00:07]} 29. Bxe5 {[%emt 0:00:02]} fxe5 {[%emt 0:00:05]} 30. bxa4 {[%emt 0:00:03]} Ka5 {[%emt 0:00:01]} 31. b3 {[%emt 0:00:02]} b5 {[%emt 0:00:06]} 32. axb5 {[%emt 0:00:09]} Kb4 {[%emt 0:00:01]} 33. Ra6 {[%emt 0:00:07]} Rxa6 {[%emt 0:00:04]} 34. bxa6 {[%emt 0:00:01]} Rd8 {[%emt 0:00:09]} 35. a7 {[%emt 0:00:04]} Ra8 {[%emt 0:00:03]} 36. Rxg6 {[%emt 0:00:07]} Rxa7 {[%emt 0:00:02]} 37. Rb6+ {[%emt 0:00:01]} Ka3 {[%emt 0:00:02]} 38. Rb5 {[%emt 0:00:02]} Ka2 {[%emt 0:00:05]} 39. Rxc5 {[%emt 0:00:02]} Ka1 {[%emt 0:00:02]} 40. Rxe5 {[%emt 0:00:05]} Ra2+ {[%emt 0:00:01]} 41. Kc3 {[%emt 0:00:00]} Rxg2 {[%emt 0:00:01]} 42. Rxh5 {[%emt 0:00:02]} Ka2 {[%emt 0:00:03]} 43. Ra5+ {[%emt 0:00:02]} Kb1 {[%emt 0:00:01]} 44. Rg5 {[%emt 0:00:03]} Rc2+ {[%emt 0:00:01]} 45. Kd4 {[%emt 0:00:01]} Kb2 {[%emt 0:00:03]} 46. e5 {[%emt 0:00:07]} Kxb3 {[%emt 0:00:02]} 47. e6 {[%emt 0:00:02]} Rxc4+ {[%emt 0:00:01]} 48. Kd5 {[%emt 0:00:01]} Rxh4 {[%emt 0:00:02]} 49. e7 {[%emt 0:00:00]} 1-0

[Event "EWIBCC 2019"]
[Site "Monte-Carlo"]
[Date "2019.11.29"]
[Round "8.4"]
[White "Michna, Marta"]
[Black "Gunina, Valentina"]
[Result "0-1"]
[ECO "D00"]
[WhiteElo "2366"]
[BlackElo "2509"]
[Annotator "ChessBase"]
[PlyCount "38"]
[EventDate "2019.11.29"]
[EventType "swiss"]
[EventCountry "MNC"]
[SourceTitle "playchess.com"]
[Source "ChessBase"]
[SourceQuality "1"]
[TimeControl "180+2"]

1. d4 {[%emt 0:00:00]} Nf6 {[%emt 0:00:00]} 2. c3 {[%emt 0:00:00]} d5 {[%emt 0:00:00]} 3. Bf4 {[%emt 0:00:01]} c5 {[%emt 0:00:02]} 4. e3 {[%emt 0:00:01]} Nc6 {[%emt 0:00:03]} 5. Nd2 {[%emt 0:00:03]} Qb6 {[%emt 0:00:09]} 6. Qb3 {[%emt 0:00:08]} c4 {[%emt 0:00:10]} 7. Qc2 {[%emt 0:00:03]} g6 {[%emt 0:00:05]} 8. e4 {[%emt 0:00:43]} Nxe4 {[%emt 0:00:54]} 9. Nxe4 {[%emt 0:00:01]} dxe4 {[%emt 0:00:01]} 10. Bxc4 {[%emt 0:00:08]} Bg7 {[%emt 0:00:01]} 11. Be3 {[%emt 0:00:07]} Qc7 {[%emt 0:00:09]} 12. Ne2 {[%emt 0:00:08]} O-O {[%emt 0:00:10]} 13. Qxe4 {[%emt 0:00:45]} Bf5 {[%emt 0:00:03]} 14. Qh4 {[%emt 0:00:06]} Nb4 {[%emt 0:00:11]} 15. Bxf7+ {[%emt 0:00:11]} Rxf7 {[%emt 0:00:01]} 16. cxb4 {[%emt 0:00:01]} Qc2 {[%emt 0:00:01]} 17. f3 {[%emt 0:00:34]} Qxb2 {[%emt 0:00:05]} 18. Kf2 {[%emt 0:00:02]} Bd3 {[%emt 0:00:05]} 19. Rad1 {[%emt 0:00:04]} Qxe2+ {[%emt 0:00:03]} 0-1

[Event "EWIBCC 2019"]
[Site "Monte-Carlo"]
[Date "2019.11.29"]
[Round "8.5"]
[White "Bulmaga, Irina"]
[Black "Paehtz, Elisabeth"]
[Result "1-0"]
[ECO "B90"]
[WhiteElo "2435"]
[BlackElo "2484"]
[Annotator "RC"]
[PlyCount "89"]
[EventDate "2019.11.29"]
[EventType "swiss"]
[EventCountry "MNC"]
[SourceTitle "playchess.com"]
[Source "ChessBase"]
[SourceQuality "1"]
[TimeControl "180+2"]

1. e4 {[%emt 0:00:00]} c5 {[%emt 0:00:00]} 2. Nf3 {[%emt 0:00:00]} d6 {[%emt 0:00:00]} 3. d4 {[%emt 0:00:01]} cxd4 {[%emt 0:00:00]} 4. Nxd4 {[%emt 0:00:01]} Nf6 {[%emt 0:00:01]} 5. Nc3 {[%emt 0:00:02]} a6 {[%emt 0:00:01]} 6. h3 {[%emt 0:00:01]} g6 {[%emt 0:00:02]} 7. Be3 {[%emt 0:00:08]} Bg7 {[%emt 0:00:05]} 8. Qd2 {[%emt 0:00:06]} b5 {[%emt 0:00:09]} 9. a3 {[%emt 0:00:08]} Bb7 {[%emt 0:00:02]} 10. f3 {[%emt 0:00:01]} Nbd7 {[%emt 0:00:02]} 11. g4 {[%emt 0:00:09]} Rc8 {[%emt 0:00:02]} 12. h4 {[%emt 0:00:12]} Ne5 {[%emt 0:00:43]} 13. h5 {[%emt 0:00:12]} Nfd7 {[%emt 0:00:06]} 14. hxg6 {[%emt 0:00:34]} hxg6 {[%emt 0:00:01]} 15. Rxh8+ {[%emt 0:00:01]} Bxh8 {[%emt 0:00:01]} 16. Qh2 {[%emt 0:00:15]} Bg7 {[%emt 0:00:03]} 17. Qh7 {[%emt 0:00:06]} Bf8 {[%emt 0:00:09]} 18. O-O-O {[%emt 0:00:54]} Rxc3 {[%emt 0:00:04]} 19. bxc3 {[%emt 0:00:01]} Qa5 {[%emt 0:00:02]} 20. Kd2 {[%emt 0:00:11]} Nb6 {[%emt 0:00:07]} 21. Nb3 {[%emt 0:00:13]} Nbc4+ {[%emt 0:00:22]} 22. Bxc4 Nxc4+ {[%emt 0:00:00]} 23. Kd3 {[%emt 0:00:02]} Ne5+ {[%emt 0:00:20]} 24. Kd2 {[%emt 0:00:10]} Nxf3+ {[%emt 0:00:06]} 25. Ke2 {[%emt 0:00:01]} Qa4 {[%emt 0:00:01]} 26. Kxf3 {[%emt 0:00:08]} Qxe4+ {[%emt 0:00:01]} 27. Ke2 {[%emt 0:00:01]} Qg2+ {[%emt 0:00:07]} 28. Ke1 {[%emt 0:00:12]} Bf3 {[%emt 0:00:07]} 29. Rd2 {[%emt 0:00:01]} Qxg4 {[%emt 0:00:17]} 30. Nd4 {[%emt 0:00:03]} Bd5 {[%emt 0:00:07]} 31. Qh2 {[%emt 0:00:04]} Qe4 {[%emt 0:00:07]} 32. Ne2 {[%emt 0:00:02]} Qxe3 {[%emt 0:00:12]} 33. Rxd5 {[%emt 0:00:01]} Bg7 {[%emt 0:00:00]} 34. Rd3 {[%emt 0:00:02]} Qc5 {[%emt 0:00:04]} 35. Qg2 {[%emt 0:00:02]} Qc8 {[%emt 0:00:10]} 36. Nd4 {[%emt 0:00:01]} Kf8 {[%emt 0:00:03]} 37. Qf3 {[%emt 0:00:05]} Kg8 {[%emt 0:00:02]} 38. Re3 {[%emt 0:00:01]} e5 {[%emt 0:00:02]} 39. Ne2 {[%emt 0:00:01]} Qc5 {[%emt 0:00:05]} 40. Rd3 {[%emt 0:00:01]} Bh6 {[%emt 0:00:05]} 41. Qd5 {[%emt 0:00:01]} Qxa3 {[%emt 0:00:03]} 42. Rf3 {[%emt 0:00:01]} Qa1+ {[%emt 0:00:08]} 43. Kf2 {[%emt 0:00:01]} Bf4 {[%emt 0:00:08]} 44. Nxf4 {[%emt 0:00:02]} Qc1 {[%emt 0:00:06]} 45. Ne2 {[%emt 0:00:02]} 1-0

[Event "EWIBCC 2019"]
[Site "Monte-Carlo"]
[Date "2019.11.29"]
[Round "8.6"]
[White "Buksa, Nataliya"]
[Black "Babiy, Olga"]
[Result "1-0"]
[ECO "B15"]
[WhiteElo "2410"]
[BlackElo "2249"]
[Annotator "NA"]
[PlyCount "55"]
[EventDate "2019.11.29"]
[EventType "swiss"]
[EventCountry "MNC"]
[SourceTitle "playchess.com"]
[Source "ChessBase"]
[SourceQuality "1"]
[TimeControl "180+2"]

1. e4 {[%emt 0:00:00]} c6 {[%emt 0:00:00]} 2. d4 {[%emt 0:03:04]} d5 3. Nc3 {[%emt 0:00:00]} dxe4 {[%emt 0:00:00]} 4. Nxe4 {[%emt 0:00:00]} Nf6 {[%emt 0:00:00]} 5. Ng5 {[%emt 0:00:00]} h6 {[%emt 0:00:09]} 6. N5h3 {[%emt 0:00:00]} Bf5 {[%emt 0:00:13]} 7. Nf4 {[%emt 0:00:00]} e6 {[%emt 0:00:01]} 8. Nf3 {[%emt 0:00:00]} Bd6 {[%emt 0:00:07]} 9. Bd3 {[%emt 0:00:00]} Bxd3 {[%emt 0:00:09]} 10. Nxd3 {[%emt 0:00:00]} Nbd7 {[%emt 0:00:02]} 11. O-O {[%emt 0:00:00]} c5 {[%emt 0:00:17]} 12. Be3 {[%emt 0:00:00]} cxd4 {[%emt 0:00:04]} 13. Nxd4 {[%emt 0:00:00]} a6 {[%emt 0:00:09]} 14. Re1 {[%emt 0:00:00]} Qc7 {[%emt 0:00:04]} 15. h3 {[%emt 0:00:00]} O-O {[%emt 0:00:27]} 16. Qf3 {[%emt 0:00:00]} Ne5 {[%emt 0:00:14]} 17. Nxe5 {[%emt 0:00:00]} Bxe5 {[%emt 0:00:01]} 18. c3 {[%emt 0:00:00]} Nd5 {[%emt 0:00:07]} 19. Bd2 {[%emt 0:00:00]} Bxd4 {[%emt 0:00:14]} 20. cxd4 {[%emt 0:00:00]} Qe7 {[%emt 0:00:05]} 21. Qxd5 {[%emt 0:00:00]} Rfd8 {[%emt 0:00:04]} 22. Qe4 {[%emt 0:00:00]} Qf6 {[%emt 0:00:01]} 23. Bc3 {[%emt 0:00:00]} Rac8 {[%emt 0:00:01]} 24. d5 {[%emt 0:00:00]} Qg5 {[%emt 0:00:25]} 25. dxe6 fxe6 {[%emt 0:00:02]} 26. Qxe6+ {[%emt 0:00:00]} Kh8 {[%emt 0:00:01]} 27. Rad1 {[%emt 0:00:00]} Rf8 {[%emt 0:00:04]} 28. Qg4 {[%emt 0:00:00]} 1-0

[Event "EWIBCC 2019"]
[Site "Monte-Carlo"]
[Date "2019.11.29"]
[Round "8.7"]
[White "Guichard, Pauline"]
[Black "Socko, Monika"]
[Result "1/2-1/2"]
[ECO "A28"]
[WhiteElo "2407"]
[BlackElo "2417"]
[Annotator "ChessBase"]
[PlyCount "99"]
[EventDate "2019.11.29"]
[EventType "swiss"]
[EventCountry "MNC"]
[SourceTitle "playchess.com"]
[Source "ChessBase"]
[SourceQuality "1"]
[TimeControl "180+2"]

1. c4 {[%emt 0:00:00]} e5 {[%emt 0:00:00]} 2. Nc3 {[%emt 0:00:00]} Nc6 {[%emt 0:00:00]} 3. Nf3 {[%emt 0:00:02]} Nf6 {[%emt 0:00:05]} 4. e3 {[%emt 0:00:01]} Bb4 {[%emt 0:00:02]} 5. Qc2 {[%emt 0:00:02]} Bxc3 {[%emt 0:00:03]} 6. Qxc3 {[%emt 0:00:02]} Qe7 {[%emt 0:00:07]} 7. d4 {[%emt 0:00:22]} exd4 {[%emt 0:00:21]} 8. Nxd4 {[%emt 0:00:02]} Nxd4 {[%emt 0:00:03]} 9. Qxd4 {[%emt 0:00:05]} O-O {[%emt 0:00:02]} 10. Be2 {[%emt 0:00:13]} d5 {[%emt 0:00:13]} 11. O-O {[%emt 0:01:02]} c5 {[%emt 0:00:01]} 12. Qh4 {[%emt 0:00:14]} d4 {[%emt 0:00:05]} 13. Bf3 {[%emt 0:00:17]} d3 {[%emt 0:00:34]} 14. Rd1 {[%emt 0:00:05]} Bf5 {[%emt 0:00:05]} 15. e4 {[%emt 0:00:28]} Bxe4 {[%emt 0:00:16]} 16. Bxe4 {[%emt 0:00:01]} Qxe4 {[%emt 0:00:03]} 17. Qxe4 {[%emt 0:00:02]} Nxe4 {[%emt 0:00:01]} 18. Rxd3 {[%emt 0:00:02]} Rad8 {[%emt 0:00:01]} 19. Rxd8 {[%emt 0:00:06]} Rxd8 {[%emt 0:00:01]} 20. Be3 {[%emt 0:00:01]} b6 {[%emt 0:00:04]} 21. Rc1 {[%emt 0:00:07]} f5 {[%emt 0:00:04]} 22. Kf1 {[%emt 0:00:10]} Kf7 {[%emt 0:00:09]} 23. f3 {[%emt 0:00:04]} Nf6 {[%emt 0:00:10]} 24. a3 {[%emt 0:00:03]} Ke6 {[%emt 0:00:08]} 25. Ke2 {[%emt 0:00:06]} Nd7 {[%emt 0:00:04]} 26. Rd1 {[%emt 0:00:03]} Re8 {[%emt 0:00:01]} 27. Bf4 {[%emt 0:00:03]} Ne5 {[%emt 0:00:13]} 28. Bxe5 {[%emt 0:00:01]} Kxe5 {[%emt 0:00:01]} 29. Rd7 {[%emt 0:00:02]} Kf6+ {[%emt 0:00:06]} 30. Kd2 {[%emt 0:00:07]} Re7 {[%emt 0:00:01]} 31. Rxe7 {[%emt 0:00:03]} Kxe7 {[%emt 0:00:01]} 32. Ke3 {[%emt 0:00:01]} Kf6 {[%emt 0:00:02]} 33. h4 {[%emt 0:00:02]} h6 {[%emt 0:00:04]} 34. f4 {[%emt 0:00:03]} g5 {[%emt 0:00:16]} 35. fxg5+ {[%emt 0:00:05]} hxg5 {[%emt 0:00:00]} 36. g3 {[%emt 0:00:01]} f4+ {[%emt 0:00:06]} 37. Kf3 {[%emt 0:00:02]} fxg3 {[%emt 0:00:03]} 38. h5 {[%emt 0:00:02]} g4+ {[%emt 0:00:04]} 39. Kxg3 {[%emt 0:00:01]} Kg5 {[%emt 0:00:01]} 40. h6 {[%emt 0:00:02]} Kxh6 {[%emt 0:00:01]} 41. Kxg4 {[%emt 0:00:00]} Kg6 {[%emt 0:00:00]} 42. Kf4 {[%emt 0:00:02]} Kf6 {[%emt 0:00:01]} 43. Ke4 {[%emt 0:00:01]} Ke6 {[%emt 0:00:00]} 44. b4 {[%emt 0:00:04]} cxb4 {[%emt 0:00:16]} 45. axb4 {[%emt 0:00:01]} a5 {[%emt 0:00:00]} 46. bxa5 {[%emt 0:00:03]} bxa5 {[%emt 0:00:01]} 47. Kd4 {[%emt 0:00:02]} Kd6 {[%emt 0:00:00]} 48. Kc3 {[%emt 0:00:01]} Kc5 {[%emt 0:00:01]} 49. Kb2 {[%emt 0:00:01]} Kxc4 {[%emt 0:00:02]} 50. Ka1 {[%emt 0:00:10]} 1/2-1/2

[Event "EWIBCC 2019"]
[Site "Monte-Carlo"]
[Date "2019.11.29"]
[Round "8.9"]
[White "Dzagnidze, Nana"]
[Black "Berend, Elvira"]
[Result "0-1"]
[ECO "C54"]
[WhiteElo "2502"]
[BlackElo "2349"]
[Annotator "ChessBase"]
[PlyCount "39"]
[EventDate "2019.11.29"]
[EventType "swiss"]
[EventCountry "MNC"]
[SourceTitle "playchess.com"]
[Source "ChessBase"]
[SourceQuality "1"]
[TimeControl "180+2"]

1. e4 {[%emt 0:00:00]} e5 {[%emt 0:00:00]} 2. Nf3 {[%emt 0:00:00]} Nc6 {[%emt 0:00:01]} 3. Bc4 {[%emt 0:00:01]} Bc5 {[%emt 0:00:01]} 4. c3 {[%emt 0:00:06]} Nf6 {[%emt 0:00:01]} 5. d4 {[%emt 0:00:04]} exd4 {[%emt 0:00:01]} 6. e5 {[%emt 0:00:01]} d5 {[%emt 0:00:03]} 7. Bb5 {[%emt 0:00:01]} Ne4 {[%emt 0:00:02]} 8. cxd4 {[%emt 0:00:01]} Bb4+ {[%emt 0:00:01]} 9. Nbd2 {[%emt 0:00:18]} O-O {[%emt 0:00:06]} 10. O-O {[%emt 0:00:01]} Bg4 {[%emt 0:00:13]} 11. Bxc6 {[%emt 0:00:25]} Bxd2 {[%emt 0:00:36]} 12. Bxb7 {[%emt 0:00:11]} Rb8 {[%emt 0:00:07]} 13. Ba6 {[%emt 0:00:12]} Bxc1 {[%emt 0:00:05]} 14. Qxc1 {[%emt 0:00:05]} Bxf3 {[%emt 0:00:03]} 15. gxf3 {[%emt 0:00:01]} Ng5 {[%emt 0:00:02]} 16. Be2 {[%emt 0:00:49]} Nh3+ {[%emt 0:00:01]} 17. Kh1 {[%emt 0:00:02]} Qh4 {[%emt 0:00:01]} 18. b3 {[%emt 0:00:21]} Rb6 {[%emt 0:00:06]} 19. f4 {[%emt 0:00:46]} Nxf4 {[%emt 0:00:10]} 20. Qe3 {[%emt 0:00:15]} 0-1

[Event "EWIBCC 2019"]
[Site "Monte-Carlo"]
[Date "2019.11.29"]
[Round "8.10"]
[White "Bodnaruk, Anastasia"]
[Black "Savina, Anastasia"]
[Result "0-1"]
[ECO "C95"]
[WhiteElo "2412"]
[BlackElo "2354"]
[Annotator "ChessBase"]
[PlyCount "122"]
[EventDate "2019.11.29"]
[EventType "swiss"]
[EventCountry "MNC"]
[SourceTitle "playchess.com"]
[Source "ChessBase"]
[SourceQuality "1"]
[TimeControl "180+2"]

1. e4 {[%emt 0:00:00]} e5 {[%emt 0:00:00]} 2. Nf3 {[%emt 0:00:00]} Nc6 {[%emt 0:00:00]} 3. Bb5 {[%emt 0:00:03]} a6 {[%emt 0:00:01]} 4. Ba4 {[%emt 0:00:00]} Nf6 {[%emt 0:00:01]} 5. O-O {[%emt 0:00:02]} Be7 {[%emt 0:00:01]} 6. Re1 {[%emt 0:00:01]} b5 {[%emt 0:00:03]} 7. Bb3 {[%emt 0:00:01]} d6 {[%emt 0:00:01]} 8. c3 {[%emt 0:00:01]} O-O {[%emt 0:00:02]} 9. h3 {[%emt 0:00:01]} Nb8 {[%emt 0:00:03]} 10. d4 {[%emt 0:00:02]} Nbd7 {[%emt 0:00:01]} 11. Nbd2 {[%emt 0:00:01]} Bb7 {[%emt 0:00:01]} 12. Bc2 {[%emt 0:00:03]} Re8 {[%emt 0:00:03]} 13. Nf1 {[%emt 0:00:03]} Bf8 {[%emt 0:00:02]} 14. Ng3 {[%emt 0:00:04]} g6 {[%emt 0:00:01]} 15. Bg5 {[%emt 0:00:07]} Qc8 {[%emt 0:00:31]} 16. Qd2 {[%emt 0:00:13]} Bg7 {[%emt 0:00:08]} 17. a4 {[%emt 0:00:39]} Nb6 {[%emt 0:00:41]} 18. a5 {[%emt 0:00:09]} Nbd7 {[%emt 0:00:11]} 19. d5 {[%emt 0:00:09]} c6 {[%emt 0:00:04]} 20. dxc6 {[%emt 0:00:16]} Qxc6 {[%emt 0:00:02]} 21. Rad1 {[%emt 0:00:01]} d5 {[%emt 0:01:02]} 22. exd5 {[%emt 0:00:13]} Qxd5 {[%emt 0:00:04]} 23. Qc1 {[%emt 0:00:55]} Qc5 {[%emt 0:00:14]} 24. Nd2 {[%emt 0:00:17]} Qc7 {[%emt 0:00:03]} 25. Nde4 {[%emt 0:00:03]} Nxe4 {[%emt 0:00:07]} 26. Nxe4 {[%emt 0:00:02]} Bc6 {[%emt 0:00:12]} 27. Bh6 {[%emt 0:00:12]} Nf8 {[%emt 0:00:08]} 28. Qe3 {[%emt 0:00:05]} Bxe4 {[%emt 0:00:03]} 29. Bxe4 {[%emt 0:00:02]} Rad8 {[%emt 0:00:02]} 30. Bxg7 {[%emt 0:00:04]} Kxg7 {[%emt 0:00:01]} 31. b4 {[%emt 0:00:04]} Ne6 {[%emt 0:00:03]} 32. Bc2 {[%emt 0:00:04]} Nf4 {[%emt 0:00:03]} 33. Bb3 {[%emt 0:00:03]} Rxd1 {[%emt 0:00:07]} 34. Rxd1 {[%emt 0:00:02]} Rc8 {[%emt 0:00:00]} 35. Rc1 {[%emt 0:00:02]} Qd6 {[%emt 0:00:01]} 36. f3 {[%emt 0:00:03]} Rd8 {[%emt 0:00:01]} 37. Kh2 {[%emt 0:00:02]} e4 {[%emt 0:00:02]} 38. g3 {[%emt 0:00:02]} Nh5 {[%emt 0:00:02]} 39. f4 {[%emt 0:00:02]} Qd2+ 40. Qxd2 {[%emt 0:00:01]} Rxd2+ {[%emt 0:00:02]} 41. Kg1 {[%emt 0:00:00]} Nxg3 {[%emt 0:00:01]} 42. Re1 {[%emt 0:00:02]} Re2 {[%emt 0:00:04]} 43. Rd1 {[%emt 0:00:01]} e3 {[%emt 0:00:02]} 44. Bd5 {[%emt 0:00:04]} Rd2 {[%emt 0:00:02]} 45. Rxd2 {[%emt 0:00:02]} exd2 {[%emt 0:00:01]} 46. Bf3 {[%emt 0:00:00]} Ne4 {[%emt 0:00:02]} 47. c4 {[%emt 0:00:03]} bxc4 {[%emt 0:00:02]} 48. b5 {[%emt 0:00:01]} Nc5 {[%emt 0:00:02]} 49. b6 {[%emt 0:00:06]} c3 50. Bd1 Nb7 {[%emt 0:00:02]} 51. Kf2 {[%emt 0:00:02]} Nxa5 {[%emt 0:00:01]} 52. Ke2 {[%emt 0:00:01]} Kf6 {[%emt 0:00:06]} 53. Kd3 {[%emt 0:00:01]} Kf5 {[%emt 0:00:02]} 54. Kxc3 {[%emt 0:00:01]} Kxf4 {[%emt 0:00:00]} 55. Ba4 {[%emt 0:00:06]} Ke3 {[%emt 0:00:05]} 56. Bd1 {[%emt 0:00:03]} Nb7 {[%emt 0:00:01]} 57. Kc4 {[%emt 0:00:02]} f5 {[%emt 0:00:01]} 58. Kd5 {[%emt 0:00:01]} f4 {[%emt 0:00:01]} 59. Kc6 {[%emt 0:00:04]} Na5+ {[%emt 0:00:01]} 60. Kc5 {[%emt 0:00:00]} f3 {[%emt 0:00:01]} 61. Kb4 {[%emt 0:00:05]} Nb7 {[%emt 0:00:01]} 0-1

[Event "EWIBCC 2019"]
[Site "Monte-Carlo"]
[Date "2019.11.29"]
[Round "8.11"]
[White "Daulyte-Cornette, Deimante"]
[Black "Muzychuk, Mariya"]
[Result "0-1"]
[ECO "B45"]
[WhiteElo "2405"]
[BlackElo "2552"]
[Annotator "RC"]
[PlyCount "24"]
[EventDate "2019.11.29"]
[EventType "swiss"]
[EventCountry "MNC"]
[SourceTitle "playchess.com"]
[Source "ChessBase"]
[SourceQuality "1"]
[TimeControl "180+2"]

1. e4 {[%emt 0:00:00]} c5 {[%emt 0:00:00]} 2. Nc3 {[%emt 0:00:01]} e6 {[%emt 0:00:00]} 3. Nge2 {[%emt 0:00:02]} Nc6 {[%emt 0:00:01]} 4. d4 {[%emt 0:00:01]} cxd4 {[%emt 0:00:01]} 5. Nxd4 {[%emt 0:00:01]} Nf6 {[%emt 0:00:00]} 6. g3 {[%emt 0:00:03]} d5 {[%emt 0:00:12]} 7. exd5 {[%emt 0:00:04]} Nxd5 {[%emt 0:00:03]} 8. Bg2 {[%emt 0:00:06]} Nxc3 {[%emt 0:00:15]} 9. bxc3 {[%emt 0:00:01]} Nxd4 {[%emt 0:00:08]} 10. Qxd4 {[%emt 0:00:02]} Qxd4 {[%emt 0:00:34]} 11. cxd4 {[%emt 0:03:01]} Bb4+ {[%emt 0:02:08]} 12. Ke2 {[%emt 0:00:00]} Bc3 {[%emt 0:00:00]} 0-1